fUSD/lending_fUSD_20240613
["ID","MTS","AMOUNT","RATE_DAILY","PERIOD"]
[329404776,1718320357240,-500.0,0.00025479,3]
[329404777,1718320357252,-500.0,0.00025479,3]
[329404778,1718320357263,-500.0,0.00025479,3]
[329404779,1718320357288,-494.76,0.00025479,3]
[329404780,1718320357299,-323.10254629,0.00025479,3]
[329404781,1718320357348,-500.0,0.00025479,2]
[329404782,1718320357359,-500.0,0.00025479,3]
[329404783,1718320357373,-500.0,0.00025479,3]
[329404784,1718320357386,-500.0,0.00025479,3]
[329404785,1718320357400,-500.0,0.00025479,3]
[329404786,1718320357417,-500.0,0.00025479,3]
[329404787,1718320357438,-624.17,0.00025479,3]
[329404788,1718320357466,-500.0,0.00025479,3]
[329404789,1718320357500,-500.0,0.00025479,3]
[329404790,1718320357514,-500.0,0.00025479,3]
[329404791,1718320357526,-500.0,0.00025479,3]
[329404792,1718320357537,-500.0,0.00025479,3]
[329404793,1718320357569,-526.19214132,0.00025479,3]
[329404794,1718320357603,-500.0,0.00025479,3]
[329404795,1718320357619,-500.0,0.00025479,3]
[329404796,1718320357631,-500.0,0.00025479,3]
[329404797,1718320357642,-500.0,0.00025479,3]
[329404798,1718320357654,-500.0,0.00025479,3]
[329404799,1718320357701,-500.0,0.00025479,3]
[329404800,1718320357733,-500.0,0.00025479,3]
[329404801,1718320357764,-500.0,0.00025479,3]
[329404802,1718320357828,-500.0,0.00025479,3]
[329404803,1718320357840,-790.29,0.00025479,3]
[329404804,1718320357864,-500.0,0.00025479,3]
[329404805,1718320357876,-213.24,0.00025479,3]
[329404806,1718320357888,-500.0,0.00025479,3]
[329404807,1718320357905,-500.0,0.00025479,3]
[329404808,1718320357917,-500.0,0.00025479,3]
[329404809,1718320357929,-1178.26,0.00025479,3]
[329404810,1718320357963,-508.07,0.00025479,3]
[329404811,1718320357988,-500.0,0.00025479,3]
[329404812,1718320358011,-500.0,0.00025479,3]
[329404813,1718320358021,-500.0,0.00025479,3]
[329404814,1718320358035,-288.40082448,0.00025479,3]
[329404815,1718320358067,-500.0,0.00025479,3]
[329404816,1718320358102,-691.85,0.00025479,3]
[329404817,1718320358123,-695.78,0.00025479,3]
[329404818,1718320358155,-499.14361928,0.00025479,2]
[329404819,1718320358171,-500.0,0.00025479,3]
[329404820,1718320358183,-624.88842886,0.00025479,3]
[329404821,1718320358211,-500.0,0.00025479,3]
[329404822,1718320358223,-500.0,0.00025479,3]
[329404823,1718320358238,-500.0,0.00025479,3]
[329404824,1718320358260,-798.99,0.00025479,3]
[329404825,1718320358281,-623.66,0.00025479,3]
[329404826,1718320358296,-500.0,0.00025479,3]
[329404827,1718320358309,-500.0,0.00025479,3]
[329404828,1718320358323,-500.0,0.00025479,3]
[329404829,1718320358336,-500.0,0.00025479,3]
[329404830,1718320358380,-500.0,0.00025479,3]
[329404831,1718320358415,-500.0,0.00025479,3]
[329404832,1718320358426,-500.0,0.00025479,3]
[329404833,1718320358452,-500.0,0.00025479,3]
[329404834,1718320358465,-500.0,0.00025479,3]
[329404835,1718320358492,-500.0,0.00025479,3]
[329404836,1718320358503,-575.32,0.00025479,3]
[329404837,1718320358528,-500.0,0.00025479,3]
[329404838,1718320358540,-652.96,0.00025479,3]
[329404839,1718320358560,-500.0,0.00025479,3]
[329404840,1718320358578,-544.11,0.00025479,3]
[329404841,1718320358618,-500.0,0.00025479,3]
[329404842,1718320358632,-500.0,0.00025479,3]
[329404843,1718320358651,-509.38900561,0.00025479,3]
[329404844,1718320358682,-500.0,0.00025479,3]
[329404845,1718320358709,-500.0,0.00025479,3]
[329404846,1718320358724,-500.0,0.00025479,3]
[329404847,1718320358741,-286.8,0.00025479,3]
[329404848,1718320358765,-500.0,0.00025479,3]
[329404849,1718320358786,-500.0,0.00025479,3]
[329404850,1718320358835,-500.0,0.00025479,3]
[329404851,1718320358877,-500.0,0.00025479,3]
[329404852,1718320358894,-751.21,0.00025479,3]
[329404853,1718320358906,-500.0,0.00025479,3]
[329404854,1718320358930,-534.79,0.00025479,3]
[329404855,1718320358944,-500.0,0.00025479,3]
[329404856,1718320358956,-500.0,0.00025479,3]
[329404857,1718320358971,-500.0,0.00025479,3]
[329404858,1718320358982,-500.0,0.00025479,3]
[329404859,1718320359006,-500.0,0.00025479,3]
[329404860,1718320359024,-151.0,0.00025479,7]
[329404861,1718320359043,-269.35,0.00025479,3]
[329404862,1718320359055,-500.0,0.00025479,3]
[329404863,1718320359069,-500.0,0.00025479,3]
[329404864,1718320359088,-500.0,0.00025479,3]
[329404865,1718320359111,-609.5,0.00025479,3]
[329404866,1718320359135,-500.0,0.00025479,3]
[329404867,1718320359156,-500.0,0.00025479,3]
[329404868,1718320359176,-500.0,0.00025479,3]
[329404869,1718320359278,-500.0,0.00025479,3]
[329404870,1718320359296,-500.0,0.00025479,3]
[329404871,1718320359316,-500.0,0.00025479,3]
[329404872,1718320359398,-500.0,0.00025479,3]
[329404873,1718320359412,-500.0,0.00025479,3]
[329404874,1718320359437,-500.0,0.00025479,3]
[329404875,1718320359458,-685.8,0.00025479,3]
[329404876,1718320359485,-500.0,0.00025479,3]
[329404877,1718320359501,-500.0,0.00025479,3]
[329404878,1718320359532,-500.0,0.00025479,3]
[329404879,1718320359548,-646.16281201,0.00025479,3]
[329404880,1718320359559,-500.0,0.00025479,3]
[329404881,1718320359588,-500.0,0.00025479,3]
[329404882,1718320359603,-736.81,0.00025479,3]
[329404883,1718320359638,-500.0,0.00025479,3]
[329404884,1718320359662,-500.0,0.00025479,3]
[329404885,1718320359674,-500.0,0.00025479,3]
[329404886,1718320359700,-500.0,0.00025479,3]
[329404887,1718320359735,-530.01,0.00025479,3]
[329404888,1718320359749,-500.0,0.00025479,3]
[329404889,1718320359762,-500.0,0.00025479,3]
[329404890,1718320359775,-500.0,0.00025479,3]
[329404891,1718320359788,-500.0,0.00025479,3]
[329404892,1718320359824,-500.0,0.00025479,3]
[329404893,1718320359847,-500.0,0.00025479,3]
[329404894,1718320359885,-500.0,0.00025479,3]
[329404895,1718320359898,-500.0,0.00025479,3]
[329404896,1718320359909,-500.0,0.00025479,3]
[329404897,1718320359927,-500.0,0.00025479,3]
[329404898,1718320359939,-500.0,0.00025479,3]
[329404899,1718320359972,-500.0,0.00025479,3]
[329404900,1718320360003,-500.0,0.00025479,3]
[329404901,1718320360024,-500.0,0.00025479,3]
[329404902,1718320360069,-322.568571,0.00025479,7]
[329404903,1718320360132,-500.0,0.00025479,3]
[329404904,1718320360160,-500.0,0.00025479,3]
[329404905,1718320360212,-500.0,0.00025479,3]
[329404906,1718320360249,-322.568571,0.00025479,7]
[329404907,1718320360289,-512.3,0.00025479,3]
[329404908,1718320360312,-500.0,0.00025479,3]
[329404909,1718320360334,-500.0,0.00025479,3]
[329404910,1718320360354,-500.0,0.00025479,3]
[329404911,1718320360406,-500.0,0.00025479,3]
[329404912,1718320360433,-500.0,0.00025479,3]
[329404913,1718320360484,-500.0,0.00025479,3]
[329404914,1718320360512,-500.0,0.00025479,3]
[329404915,1718320360528,-542.12,0.00025479,3]
[329404916,1718320360568,-500.0,0.00025479,3]
[329404917,1718320360593,-500.0,0.00025479,3]
[329404918,1718320360625,-817.96,0.00025479,3]
[329404919,1718320360660,-500.0,0.00025479,3]
[329404920,1718320360676,-582.44,0.00025479,3]
[329404921,1718320360695,-500.0,0.00025479,3]
[329404922,1718320360737,-628.96,0.00025479,3]
[329404923,1718320360764,-500.0,0.00025479,3]
[329404924,1718320360791,-500.0,0.00025479,3]
[329404925,1718320360818,-500.0,0.00025479,3]
[329404926,1718320360888,-1046.71,0.00025479,3]
[329404927,1718320360929,-500.0,0.00025479,3]
[329404928,1718320360948,-500.0,0.00025479,3]
[329404929,1718320360960,-500.0,0.00025479,3]
[329404930,1718320361001,-500.0,0.00025479,3]
[329404931,1718320361014,-500.0,0.00025479,3]
[329404932,1718320361043,-500.0,0.00025479,3]
[329404933,1718320361072,-500.0,0.00025479,3]
[329404934,1718320361112,-500.0,0.00025479,3]
[329404935,1718320361154,-500.0,0.00025479,3]
[329404936,1718320361254,-500.0,0.00025479,3]
[329404937,1718320361273,-500.0,0.00025479,3]
[329404938,1718320361291,-500.0,0.00025479,3]
[329404939,1718320361325,-500.0,0.00025479,3]
[329404940,1718320361376,-500.0,0.00025479,3]
[329404941,1718320361401,-500.0,0.00025479,3]
[329404942,1718320361428,-500.0,0.00025479,3]
[329404943,1718320361489,-689.99,0.00025479,3]
[329404944,1718320361501,-842.55,0.00025479,3]
[329404945,1718320361533,-500.0,0.00025479,3]
[329404946,1718320361548,-500.0,0.00025479,3]
[329404947,1718320361592,-500.0,0.00025479,3]
[329404948,1718320361605,-500.0,0.00025479,3]
[329404949,1718320361640,-500.0,0.00025479,3]
[329404950,1718320361668,-500.0,0.00025479,3]
[329404951,1718320361712,-500.0,0.00025479,3]
[329404952,1718320361724,-731.56,0.00025479,3]
[329404953,1718320361773,-706.63,0.00025479,3]
[329404954,1718320361790,-533.35,0.00025479,3]
[329404955,1718320361817,-500.0,0.00025479,3]
[329404956,1718320361850,-687.47,0.00025479,3]
[329404957,1718320361866,-501.64,0.00025479,3]
[329404958,1718320361878,-500.0,0.00025479,3]
[329404959,1718320361909,-500.0,0.00025479,3]
[329404960,1718320361921,-500.0,0.00025479,3]
[329404961,1718320361938,-500.0,0.00025479,3]
[329404962,1718320361952,-629.0792345,0.00025479,3]
[329404963,1718320361963,-834.82,0.00025479,3]
[329404964,1718320361976,-500.0,0.00025479,3]
[329404965,1718320361988,-500.0,0.00025479,3]
[329404966,1718320362005,-1134.66,0.00025479,3]
[329404967,1718320362020,-500.0,0.00025479,3]
[329404968,1718320362040,-500.0,0.00025479,3]
[329404969,1718320362063,-500.0,0.00025479,3]
[329404970,1718320362080,-500.0,0.00025479,3]
[329404971,1718320362093,-826.72,0.00025479,3]
[329404972,1718320362105,-500.0,0.00025479,3]
[329404973,1718320362120,-500.0,0.00025479,3]
[329404974,1718320362132,-500.0,0.00025479,3]
[329404975,1718320362148,-624.06,0.00025479,3]
[329404976,1718320362166,-500.0,0.00025479,3]
[329404977,1718320362182,-500.0,0.00025479,3]
[329404978,1718320362201,-500.0,0.00025479,3]
[329404979,1718320362228,-818.04,0.00025479,3]
[329404980,1718320362253,-500.0,0.00025479,3]
[329404981,1718320362267,-500.0,0.00025479,3]
[329404982,1718320362279,-500.0,0.00025479,3]
[329404983,1718320362291,-500.0,0.00025479,3]
[329404984,1718320362304,-500.0,0.00025479,3]
[329404985,1718320362324,-228.27,0.00025479,3]
[329404986,1718320362335,-500.0,0.00025479,3]
[329404987,1718320362361,-500.0,0.00025479,3]
[329404988,1718320362401,-500.0,0.00025479,3]
[329404989,1718320362432,-500.0,0.00025479,3]
[329404990,1718320362447,-500.0,0.00025479,3]
[329404991,1718320362459,-500.0,0.00025479,3]
[329404992,1718320362504,-544.56,0.00025479,3]
[329404993,1718320362516,-500.0,0.00025479,3]
[329404994,1718320362532,-500.0,0.00025479,3]
[329404995,1718320362556,-500.0,0.00025479,3]
[329404996,1718320362616,-500.0,0.00025479,3]
[329404997,1718320362637,-500.0,0.00025479,3]
[329404998,1718320362667,-500.0,0.00025479,3]
[329404999,1718320362682,-752.51,0.00025479,3]
[329405000,1718320362701,-941.51,0.00025479,3]
[329405001,1718320362717,-513.09,0.00025479,3]
[329405002,1718320362734,-548.6,0.00025479,3]
[329405003,1718320362810,-500.0,0.00025479,3]
[329405004,1718320362837,-500.0,0.00025479,3]
[329405005,1718320362859,-500.0,0.00025479,3]
[329405006,1718320362873,-500.0,0.00025479,3]
[329405007,1718320362902,-500.0,0.00025479,3]
[329405008,1718320362948,-508.46376762,0.00025479,3]
[329405009,1718320363002,-758.83,0.00025479,3]
[329405010,1718320363049,-500.0,0.00025479,3]
[329405011,1718320363074,-500.0,0.00025479,3]
[329405012,1718320363101,-500.0,0.00025479,2]
[329405013,1718320363111,-3116.86,0.00025479,3]
[329405014,1718320363164,-500.0,0.00025479,3]
[329405015,1718320363204,-692.24,0.00025479,3]
[329405016,1718320363227,-500.0,0.00025479,3]
[329405017,1718320363239,-500.0,0.00025479,3]
[329405018,1718320363274,-500.0,0.00025479,3]
[329405019,1718320363292,-151.0,0.00025479,7]
[329405020,1718320363304,-500.0,0.00025479,3]
[329405021,1718320363319,-321.686013,0.00025479,7]
[329405022,1718320363353,-4313.72,0.00025479,3]
[329405023,1718320363377,-517.9,0.00025479,3]
[329405024,1718320363404,-500.0,0.00025479,3]
[329405025,1718320363418,-677.98,0.00025479,3]
[329405026,1718320363449,-500.0,0.00025479,3]
[329405027,1718320363480,-500.0,0.00025479,3]
[329405028,1718320363499,-500.0,0.00025479,3]
[329405029,1718320363525,-500.0,0.00025479,3]
[329405030,1718320363556,-500.0,0.00025479,3]
[329405031,1718320363577,-819.7,0.00025479,3]
[329405032,1718320363610,-500.0,0.00025479,3]
[329405033,1718320363631,-500.0,0.00025479,3]
[329405034,1718320363671,-277.08947001,0.00025479,3]
[329405035,1718320363707,-500.0,0.00025479,3]
[329405036,1718320363750,-601.07,0.00025479,3]
[329405037,1718320363763,-500.0,0.00025479,3]
[329405038,1718320363796,-500.0,0.00025479,3]
[329405039,1718320363851,-160.3710814,0.00025479,3]
[329405040,1718320363892,-969.2,0.00025479,3]
[329405041,1718320363936,-4171.67,0.00025479,3]
[329405042,1718320363956,-500.0,0.00025479,3]
[329405043,1718320363978,-500.0,0.00025479,3]
[329405044,1718320364010,-151.0,0.00025479,7]
[329405045,1718320364112,-500.0,0.00025479,3]
[329405046,1718320364130,-1472.23,0.00025479,3]
[329405047,1718320364158,-500.0,0.00025479,3]
[329405048,1718320364179,-500.0,0.00025479,3]
[329405049,1718320364216,-500.0,0.00025479,3]
[329405050,1718320364232,-500.0,0.00025479,3]
[329405051,1718320364260,-500.0,0.00025479,3]
[329405052,1718320364282,-500.0,0.00025479,3]
[329405053,1718320364313,-529.42,0.00025479,3]
[329405054,1718320364344,-500.0,0.00025479,3]
[329405055,1718320364379,-1427.62,0.00025479,3]
[329405056,1718320364393,-500.0,0.00025479,3]
[329405057,1718320364407,-5019.37,0.00025479,3]
[329405058,1718320364447,-500.0,0.00025479,3]
[329405059,1718320364481,-500.0,0.00025479,3]
[329405060,1718320364528,-2071.22,0.00025479,3]
[329405061,1718320364553,-500.0,0.00025479,3]
[329405062,1718320364577,-944.06,0.00025479,3]
[329405063,1718320364593,-500.0,0.00025479,3]
[329405064,1718320364609,-500.0,0.00025479,3]
[329405065,1718320364630,-6339.12,0.00025479,3]
[329405066,1718320364668,-151.0,0.00025479,7]
[329405067,1718320364684,-577.87,0.00025479,3]
[329405068,1718320364710,-500.0,0.00025479,3]
[329405069,1718320364727,-500.0,0.00025479,3]
[329405070,1718320364744,-2580.79,0.00025479,3]
[329405071,1718320364760,-500.0,0.00025479,3]
[329405072,1718320364775,-1591.45,0.00025479,3]
[329405073,1718320364790,-151.0,0.00025479,7]
[329405074,1718320364810,-500.0,0.00025479,3]
[329405075,1718320364824,-500.0,0.00025479,3]
[329405076,1718320364848,-500.0,0.00025479,3]
[329405077,1718320364868,-502.52,0.00025479,3]
[329405078,1718320364886,-500.0,0.00025479,3]
[329405079,1718320364901,-500.0,0.00025479,3]
[329405080,1718320364939,-500.0,0.00025479,3]
[329405081,1718320364957,-564.32,0.00025479,3]
[329405082,1718320364972,-156.754014,0.00025479,7]
[329405083,1718320364992,-619.34,0.00025479,3]
[329405084,1718320365017,-1478.87,0.00025479,3]
[329405085,1718320365030,-500.0,0.00025479,3]
[329405086,1718320365045,-500.0,0.00025479,3]
[329405087,1718320365067,-500.0,0.00025479,3]
[329405088,1718320365104,-500.0,0.00025479,3]
[329405089,1718320365146,-1234.57,0.00025479,3]
[329405090,1718320365186,-156.754014,0.00025479,7]
[329405091,1718320365202,-930.16,0.00025479,3]
[329405092,1718320365274,-500.0,0.00025479,3]
[329405093,1718320365301,-500.0,0.00025479,3]
[329405094,1718320365322,-500.0,0.00025479,3]
[329405095,1718320365352,-500.0,0.00025479,3]
[329405096,1718320365380,-500.0,0.00025479,3]
[329405097,1718320365409,-500.0,0.00025479,3]
[329405098,1718320365425,-1971.12,0.00025479,3]
[329405099,1718320365454,-500.0,0.00025479,3]
[329405100,1718320365484,-743.44,0.00025479,3]
[329405101,1718320365499,-500.0,0.00025479,3]
[329405102,1718320365551,-500.0,0.00025479,3]
[329405103,1718320365568,-500.0,0.00025479,3]
[329405104,1718320365589,-610.48,0.00025479,3]
[329405105,1718320365621,-500.0,0.00025479,3]
[329405106,1718320365640,-661.13,0.00025479,3]
[329405107,1718320365654,-500.0,0.00025479,3]
[329405108,1718320365680,-500.0,0.00025479,3]
[329405109,1718320365696,-500.0,0.00025479,3]
[329405110,1718320365722,-963.44,0.00025479,3]
[329405111,1718320365752,-533.87,0.00025479,3]
[329405112,1718320365772,-500.0,0.00025479,3]
[329405113,1718320365786,-1022.84,0.00025479,3]
[329405114,1718320365824,-1126.87,0.00025479,3]
[329405115,1718320365856,-500.0,0.00025479,3]
[329405116,1718320365883,-2267.4,0.00025479,3]
[329405117,1718320365907,-821.07,0.00025479,3]
[329405118,1718320365963,-500.0,0.00025479,3]
[329405119,1718320365985,-500.0,0.00025479,3]
[329405120,1718320366001,-500.0,0.00025479,3]
[329405121,1718320366018,-2310.9,0.00025479,3]
[329405122,1718320366033,-500.0,0.00025479,3]
[329405123,1718320366058,-167.28,0.00025479,3]
[329405124,1718320366091,-3363.13,0.00025479,3]
[329405125,1718320366125,-500.0,0.00025479,3]
[329405126,1718320366141,-500.0,0.00025479,3]
[329405127,1718320366168,-1220.15,0.00025479,3]
[329405128,1718320366182,-500.0,0.00025479,3]
[329405129,1718320366202,-500.0,0.00025479,3]
[329405130,1718320366216,-2361.0,0.00025479,3]
[329405131,1718320366233,-500.0,0.00025479,3]
[329405132,1718320366249,-500.0,0.00025479,3]
[329405133,1718320366263,-500.0,0.00025479,3]
[329405134,1718320366276,-500.0,0.00025479,3]
[329405135,1718320366290,-500.0,0.00025479,3]
[329405136,1718320366308,-500.0,0.00025479,3]
[329405137,1718320366322,-845.89,0.00025479,3]
[329405138,1718320366336,-500.0,0.00025479,3]
[329405139,1718320366351,-500.0,0.00025479,3]
[329405140,1718320366376,-500.0,0.00025479,3]
[329405141,1718320366393,-1860.08,0.00025479,3]
[329405142,1718320366406,-620.18,0.00025479,3]
[329405143,1718320366420,-500.0,0.00025479,3]
[329405144,1718320366437,-621.59,0.00025479,3]
[329405145,1718320366453,-500.0,0.00025479,3]
[329405146,1718320366466,-411.69870258,0.00025479,3]
[329405147,1718320366488,-500.0,0.00025479,3]
[329405148,1718320366504,-1133.15,0.00025479,3]
[329405149,1718320366522,-500.0,0.00025479,3]
[329405150,1718320366548,-609.83,0.00025479,3]
[329405151,1718320366572,-500.0,0.00025479,3]
[329405152,1718320366593,-500.0,0.00025479,3]
[329405153,1718320366608,-11319.94,0.00025479,3]
[329405154,1718320366623,-500.0,0.00025479,3]
[329405155,1718320366638,-1255.47,0.00025479,3]
[329405156,1718320366652,-500.0,0.00025479,3]
[329405157,1718320366665,-500.0,0.00025479,3]
[329405158,1718320366679,-500.0,0.00025479,3]
[329405159,1718320366694,-712.06,0.00025479,3]
[329405160,1718320366709,-500.0,0.00025479,3]
[329405161,1718320366722,-542.32,0.00025479,3]
[329405162,1718320366744,-500.0,0.00025479,3]
[329405163,1718320366759,-1517.96,0.00025479,3]
[329405164,1718320366810,-646.26,0.00025479,3]
[329405165,1718320366824,-500.0,0.00025479,3]
[329405166,1718320366837,-500.0,0.00025479,3]
[329405167,1718320366876,-500.0,0.00025479,3]
[329405169,1718320366900,-500.0,0.00025479,3]
[329405170,1718320366916,-500.0,0.00025479,3]
[329405171,1718320366929,-1612.23,0.00025479,3]
[329405172,1718320366956,-500.0,0.00025479,3]
[329405173,1718320366970,-1147.19,0.00025479,3]
[329405174,1718320366983,-3424.63,0.00025479,3]
[329405175,1718320367014,-500.0,0.00025479,3]
[329405176,1718320367032,-1385.38,0.00025479,3]
[329405177,1718320367091,-352.95,0.00025479,3]
[329405178,1718320367126,-500.0,0.00025479,3]
[329405179,1718320367158,-8166.43,0.00025479,3]
[329405180,1718320367188,-1946.85,0.00025479,3]
[329405181,1718320367207,-500.0,0.00025479,3]
[329405182,1718320367227,-1453.22,0.00025479,3]
[329405183,1718320367245,-500.0,0.00025479,3]
[329405184,1718320367262,-500.0,0.00025479,3]
[329405185,1718320367321,-504.86,0.00025479,3]
[329405186,1718320367336,-151.0,0.00025479,7]
[329405187,1718320367358,-500.0,0.00025479,3]
[329405188,1718320367388,-500.0,0.00025479,3]
[329405189,1718320367428,-500.0,0.00025479,3]
[329405190,1718320367449,-1070.05,0.00025479,3]
[329405191,1718320367487,-1582.75,0.00025479,3]
[329405192,1718320367501,-500.0,0.00025479,3]
[329405193,1718320367532,-1624.17,0.00025479,3]
[329405194,1718320367549,-500.0,0.00025479,3]
[329405195,1718320367569,-715.19,0.00025479,3]
[329405196,1718320367584,-2369.41,0.00025479,3]
[329405197,1718320367602,-500.0,0.00025479,3]
[329405198,1718320367615,-4254.95,0.00025479,3]
[329405199,1718320367632,-500.0,0.00025479,3]
[329405200,1718320367647,-500.0,0.00025479,3]
[329405201,1718320367697,-151.0,0.00025479,7]
[329405202,1718320367717,-500.0,0.00025479,3]
[329405203,1718320367735,-1054.26,0.00025479,3]
[329405204,1718320367750,-500.0,0.00025479,3]
[329405205,1718320367771,-853.69,0.00025479,3]
[329405206,1718320367810,-500.0,0.00025479,3]
[329405207,1718320367826,-2395.39,0.00025479,3]
[329405208,1718320367841,-4096.83,0.00025479,3]
[329405209,1718320367855,-500.0,0.00025479,3]
[329405210,1718320367884,-2151.91,0.00025479,3]
[329405211,1718320367899,-6315.94,0.00025479,3]
[329405212,1718320367912,-1587.47,0.00025479,3]
[329405213,1718320367926,-500.0,0.00025479,3]
[329405214,1718320367940,-500.0,0.00025479,3]
[329405215,1718320367974,-2319.76,0.00025479,3]
[329405216,1718320368012,-10030.19,0.00025479,3]
[329405217,1718320368036,-151.0,0.00025479,7]
[329405218,1718320368059,-500.0,0.00025479,3]
[329405219,1718320368072,-500.0,0.00025479,3]
[329405220,1718320368092,-500.0,0.00025479,3]
[329405221,1718320368109,-702.19,0.00025479,3]
[329405222,1718320368132,-2226.25,0.00025479,3]
[329405223,1718320368160,-568.42,0.00025479,3]
[329405224,1718320368176,-710.66,0.00025479,3]
[329405225,1718320368189,-500.0,0.00025479,3]
[329405226,1718320368202,-500.0,0.00025479,3]
[329405227,1718320368228,-500.0,0.00025479,3]
[329405228,1718320368261,-1702.81,0.00025479,3]
[329405229,1718320368276,-151.0,0.00025479,7]
[329405230,1718320368291,-1103.72,0.00025479,3]
[329405231,1718320368305,-8704.11,0.00025479,3]
[329405232,1718320368320,-3569.13,0.00025479,3]
[329405233,1718320368338,-500.0,0.00025479,3]
[329405234,1718320368368,-1464.04,0.00025479,3]
[329405235,1718320368382,-500.0,0.00025479,3]
[329405236,1718320368402,-500.0,0.00025479,3]
[329405237,1718320368432,-1252.91,0.00025479,3]
[329405238,1718320368451,-500.0,0.00025479,3]
[329405239,1718320368484,-500.0,0.00025479,3]
[329405240,1718320368516,-500.0,0.00025479,3]
[329405241,1718320368530,-151.0,0.00025479,7]
[329405242,1718320368558,-3534.62,0.00025479,3]
[329405243,1718320368595,-500.0,0.00025479,3]
[329405244,1718320368616,-897.26,0.00025479,3]
[329405245,1718320368632,-500.0,0.00025479,3]
[329405246,1718320368648,-1716.4,0.00025479,3]
[329405247,1718320368668,-551.79,0.00025479,3]
[329405248,1718320368683,-1940.51,0.00025479,3]
[329405249,1718320368716,-500.0,0.00025479,3]
[329405250,1718320368729,-500.0,0.00025479,3]
[329405251,1718320368753,-500.0,0.00025479,3]
[329405252,1718320368766,-931.95,0.00025479,3]
[329405253,1718320368780,-1002.85,0.00025479,3]
[329405254,1718320368793,-6328.79,0.00025479,3]
[329405255,1718320368822,-874.49,0.00025479,3]
[329405256,1718320368836,-5552.19,0.00025479,3]
[329405257,1718320368853,-500.0,0.00025479,3]
[329405258,1718320368868,-500.0,0.00025479,3]
[329405259,1718320368904,-1760.43,0.00025479,3]
[329405260,1718320368917,-548.59,0.00025479,3]
[329405261,1718320368933,-885.2,0.00025479,3]
[329405262,1718320368946,-20754.34,0.00025479,3]
[329405263,1718320368964,-500.0,0.00025479,3]
[329405264,1718320369000,-500.0,0.00025479,3]
[329405265,1718320369015,-2363.03,0.00025479,3]
[329405266,1718320369028,-500.0,0.00025479,3]
[329405267,1718320369084,-2574.46,0.00025479,3]
[329405268,1718320369447,-9692.4,0.00025479,3]
[329405269,1718320369507,-500.0,0.00025479,3]
[329405270,1718320369552,-4255.28,0.00025479,3]
[329405271,1718320369568,-515.56,0.00025479,3]
[329405272,1718320369581,-4020.29,0.00025479,3]
[329405273,1718320369604,-16122.68,0.00025479,3]
[329405274,1718320369619,-1598.32,0.00025479,3]
[329405275,1718320369648,-500.0,0.00025479,3]
[329405276,1718320369687,-9860.84,0.00025479,3]